Organisation Name,Organisation Code,Directorate/Service,Service Category Label,Service Code,Supplier Name,Supplier Reference,Payment Date,Transaction Number,Net Payments,Purpose of Spend
North West Leicestershire District Council,31UH,Corporate Director,Human Resources,HR,Badgemaster Limited,A032369,03/03/2021,1406579,300.45,Corporate Training
North West Leicestershire District Council,31UH,Street Management,Environment - Street Scene,ESS,InTechnology PLC,A045016,03/03/2021,1406781,3645,Contract Payments (Other) Ext
North West Leicestershire District Council,31UH,Information Technology,ICT Services,ICT,Freedom Communications (UK) Ltd,A032826,03/03/2021,1406902,7021,Phone system & network equipment
North West Leicestershire District Council,31UH,Information Technology,ICT Services,ICT,Idox Software Ltd,A034157,03/03/2021,1407029,284.78,Admin Equipment - Maintenance
North West Leicestershire District Council,31UH,Information Technology,ICT Services,ICT,Idox Software Ltd,A034157,03/03/2021,1407030,79185.32,Software Licences
North West Leicestershire District Council,31UH,Information Technology,ICT Services,ICT,Idox Software Ltd,A034157,03/03/2021,1407031,613.2,Computing
North West Leicestershire District Council,31UH,Street Management,Environment Transport,ENOT,Mertrux Ltd,A035291,03/03/2021,1407072,515.12,Repairs - Parts
North West Leicestershire District Council,31UH,Street Management,Environment Transport,ENOT,Westbury Industrial Supplies Limited,A009933,03/03/2021,1407074,1234.29,Operational Purchases
North West Leicestershire District Council,31UH,Street Management,Environment Transport,ENOT,Coalville Cleaning Services,A003037,03/03/2021,1407078,1365,Contract Cleaning
North West Leicestershire District Council,31UH,Street Management,Environment - Street Scene,ESS,Idox Software Ltd,A034157,03/03/2021,1407083,1600,Training Expenses
North West Leicestershire District Council,31UH,Street Management,Environment Transport,ENOT,Mitchell Diesel Ltd t/a Mitchell Power Systems,A001128,03/03/2021,1407084,472.65,Non Scheduled Maintenance - Parts
North West Leicestershire District Council,31UH,Street Management,Environment Transport,ENOT,Municipal Vehicle Inspection Services Ltd,A025025,03/03/2021,1407085,680,Operational Equipment - Rep & Maint
North West Leicestershire District Council,31UH,Planning & Development,Environment - Development Control,EDC,TMP Worldwide Ltd,A045319,03/03/2021,1407099,465.08,Advertising
North West Leicestershire District Council,31UH,Planning & Development,Environment - Development Control,EDC,TMP Worldwide Ltd,A045319,03/03/2021,1407100,290.2,Advertising
North West Leicestershire District Council,31UH,Planning & Development,Environment - Development Control,EDC,MBL Seminars Limited,A041430,03/03/2021,1407101,270,Training Expenses
North West Leicestershire District Council,31UH,Planning & Development,Environment - Development Control,EDC,MBL Seminars Limited,A041430,03/03/2021,1407102,270,Training Expenses
North West Leicestershire District Council,31UH,Street Management,Environment Transport,ENOT,Selby's Garage (Woodhouse) Ltd,A044011,03/03/2021,1407106,643.96,Hire Of Operational Equipment
North West Leicestershire District Council,31UH,Street Management,Environment Waste Management,ENOWM,Straight Plc,A024906,03/03/2021,1407109,14532,General Materials
North West Leicestershire District Council,31UH,Corporate Director,Human Resources,HR,Health Management Ltd,A038840,03/03/2021,1407111,1034,Medical Fees
North West Leicestershire District Council,31UH,Planning & Development,Environment - Development Control,EDC,TMP Worldwide Ltd,A045319,03/03/2021,1407114,691.12,Advertising
North West Leicestershire District Council,31UH,Finance,Financial Planning,FINPLA,Michael Page International Recruitment Ltd,A041893,03/03/2021,1407115,2100,Agency Staff
North West Leicestershire District Council,31UH,Finance,Financial Planning,FINPLA,Macildowie Associates Ltd,A046022,03/03/2021,1407116,2027.52,Agency Staff
North West Leicestershire District Council,31UH,Legal & Democratic,Legal Services,LDLS,HB Editorial Services Ltd,A044792,03/03/2021,1407118,990,Employee Advertising
North West Leicestershire District Council,31UH,Housing,HRA Older Persons Service,HRAOPS,Hinckley & Bosworth Borough Council,A000770,03/03/2021,1407122,890.73,Annual Billing Stationery
North West Leicestershire District Council,31UH,Street Management,Environment Transport,ENOT,Spaldings (UK) Limited,A001540,03/03/2021,1407136,684.62,Scheduled Servicing - Parts
North West Leicestershire District Council,31UH,Property Services,Property Commercial Lettings,PROPCL,Readings Property Group Ltd,A045486,03/03/2021,1407139,250,Legal & Professional Services
North West Leicestershire District Council,31UH,Housing,HRA Performance & Business Support,HRAPBS,Happy Drains Limited,A046707,03/03/2021,1407149,495,Legal & Professional Services
North West Leicestershire District Council,31UH,Housing,HRA Housing Management,HRAHM,MRC Community Action,A001208,03/03/2021,1392763,269.5,HRA Hardship Fund
North West Leicestershire District Council,31UH,Property Services,Property Facilities Management,PROPFM,Logic Fire and Security Ltd,A044439,03/03/2021,1406844,537.47,General Repairs (Property Services)
North West Leicestershire District Council,31UH,Property Services,Property Commercial Lettings,PROPCL,Coalville Cleaning Services,A003037,03/03/2021,1407032,653.25,Contract Cleaning
North West Leicestershire District Council,31UH,Finance,Financial Planning,FINPLA,Cabinet Office,A043533,03/03/2021,1407105,2450,National Fraud Initiative
North West Leicestershire District Council,31UH,Corporate Director,Human Resources,HR,Stephenson College,A000373,03/03/2021,1407113,1987,Training Expenses
North West Leicestershire District Council,31UH,Street Management,Environment Waste Management,ENOWM,Hinckley & Bosworth Borough Council,A000770,03/03/2021,1407123,776,Publicity & Promotion
North West Leicestershire District Council,31UH,Leisure & Culture,Sport & Physical Activity,SPA,EA Bedworth Ltd,A046706,03/03/2021,1407154,2500,Least Active Children & Adults Project
North West Leicestershire District Council,31UH,Leisure & Culture,Sport & Physical Activity,SPA,Fit 4 Life Personal Training,A046695,03/03/2021,1406867,522,Least Active Children & Adults Project
North West Leicestershire District Council,31UH,Property Services,Property Commercial Lettings,PROPCL,Coalville Cleaning Services,A003037,03/03/2021,1407033,347.53,Contract Cleaning
North West Leicestershire District Council,31UH,Planning & Development,Environment - Development Control,EDC,RM Wetlands & Environment Ltd,A046113,03/03/2021,1407163,4950,River Mease Project
North West Leicestershire District Council,31UH,Property Services,Property Commercial Lettings,PROPCL,Moira Furnace Museum Trust Ltd,A001136,03/03/2021,1407168,353.16,General Repairs
North West Leicestershire District Council,31UH,Housing Strategy,Community - Housing Strategy,HS,The Queen Head Hotel,A002703,03/03/2021,1407195,419.93,Homeless prevention Expenditure
North West Leicestershire District Council,31UH,Housing Strategy,Community - Housing Strategy,HS,The Queen Head Hotel,A002703,03/03/2021,1407197,419.93,Homeless prevention Expenditure
North West Leicestershire District Council,31UH,Housing Strategy,Community - Housing Strategy,HS,The Queen Head Hotel,A002703,03/03/2021,1407198,419.93,Homeless prevention Expenditure
North West Leicestershire District Council,31UH,Housing Strategy,Community - Housing Strategy,HS,The Queen Head Hotel,A002703,03/03/2021,1407199,419.93,Homeless prevention Expenditure
North West Leicestershire District Council,31UH,Housing Repairs,HRA Housing Repairs & Maintenance,HRAHRM,T & S Heating Ltd,A046054,03/03/2021,1407208,308.56,Housing repairs
North West Leicestershire District Council,31UH,Street Management,Environment - Street Scene,ESS,City Dressing,A045518,03/03/2021,1407181,1927.97,Advertising
North West Leicestershire District Council,31UH,Street Management,Environment Transport,ENOT,Mertrux Ltd,A035291,03/03/2021,1407182,405.14,Non Scheduled Maintenance - Parts
North West Leicestershire District Council,31UH,Housing Repairs,HRA Housing Repairs & Maintenance,HRAHRM,Dalrod UK Ltd,A046051,03/03/2021,1407209,12211.25,Sewerage & Environmental
North West Leicestershire District Council,31UH,Housing Repairs,HRA Housing Repairs & Maintenance,HRAHRM,Laker BMS Ltd,A031787,03/03/2021,1407211,8743.23,Housing Repairs
North West Leicestershire District Council,31UH,Finance,Financial Planning,FINPLA,Michael Page International Recruitment Ltd,A041893,03/03/2021,1407216,2100,Agency Staff
North West Leicestershire District Council,31UH,Leisure & Culture,Sport & Physical Activity,SPA,Kimbles Music & Movement Ltd,A035950,03/03/2021,1407164,720,Least Active Children & Adults Project
North West Leicestershire District Council,31UH,Property Services,Property Commercial Lettings,PROPCL,Moira Furnace Museum Trust Ltd,A001136,03/03/2021,1407165,353.16,Contract Cleaning
North West Leicestershire District Council,31UH,Housing,HRA Housing Management,HRAHM,TPAS Limited,A028863,03/03/2021,1407399,1450,Subscriptions
North West Leicestershire District Council,31UH,Street Management,Environment - Street Scene,ESS,This and That Leicester,A046601,03/03/2021,1407414,2625,Work in Default
North West Leicestershire District Council,31UH,Housing,HRA Housing Management,HRAHM,HQN Ltd,A007983,03/03/2021,1405185,3750,Legal & Professional Services
North West Leicestershire District Council,31UH,Street Management,Environment Parks,ENOP,Harlow Bros Limited,A000734,03/03/2021,1407174,577.6,Operational Purchases
North West Leicestershire District Council,31UH,Street Management,Environment Waste Management,ENOWM,Groundsman Tools & Supplies LLP,A030744,03/03/2021,1407186,425,Cleaning & Domestic Equipment
North West Leicestershire District Council,31UH,Street Management,Environment Waste Management,ENOWM,Glasdon UK Ltd,A000671,03/03/2021,1407193,659.5,General Materials
North West Leicestershire District Council,31UH,Street Management,Environment Transport,ENOT,Digraph Transport Supplies Ltd,A000486,03/03/2021,1407203,1686.25,Operational Purchases
North West Leicestershire District Council,31UH,Housing Strategy,Community - Housing Strategy,HS,The Queen Head Hotel,A002703,03/03/2021,1407402,419.93,Homeless prevention Expenditure
North West Leicestershire District Council,31UH,Property Services,Property Commercial Lettings,PROPCL,Fire Proof Ltd,A039911,03/03/2021,1407403,1547.35,General Repairs
North West Leicestershire District Council,31UH,Property Services,Property Facilities Management,PROPFM,Citron Hygiene Ltd,A033313,03/03/2021,1407408,578.3,Service Contracts - Premises costs
North West Leicestershire District Council,31UH,Finance,Financial Planning,FINPLA,Macildowie Associates Ltd,A046022,03/03/2021,1407411,1565.67,Agency Staff
North West Leicestershire District Council,31UH,Finance,Financial Planning,FINPLA,Macildowie Associates Ltd,A046022,03/03/2021,1407412,1545.91,Agency Staff
North West Leicestershire District Council,31UH,Finance,Financial Planning,FINPLA,Macildowie Associates Ltd,A046022,03/03/2021,1407413,2041.13,Agency Staff
North West Leicestershire District Council,31UH,Street Management,Environment Transport,ENOT,Brush Technology Ltd,A044453,10/03/2021,1407026,1769.52,Hire Of Operational Equipment
North West Leicestershire District Council,31UH,Street Management,Environment - Street Scene,ESS,Coalville Cleaning Services,A003037,10/03/2021,1407034,341.25,Contract Cleaning
North West Leicestershire District Council,31UH,Information Technology,ICT Services,ICT,Infosec Cloud Ltd,A039730,10/03/2021,1407140,3811.5,Admin Equipment - Maintenance
North West Leicestershire District Council,31UH,Information Technology,ICT Services,ICT,Sec-1 Ltd,A035307,10/03/2021,1407146,6999.98,Admin Equipment - Maintenance
North West Leicestershire District Council,31UH,Information Technology,ICT Services,ICT,House on the Hill Software Ltd,A042199,10/03/2021,1407173,8160,Admin Equipment - Maintenance
North West Leicestershire District Council,31UH,Street Management,Environment Parks,ENOP,Groundsman Tools & Supplies LLP,A030744,10/03/2021,1407175,275.82,Operational Purchases
North West Leicestershire District Council,31UH,Street Management,Environment Transport,ENOT,Accent Wire Ltd,A044269,10/03/2021,1407178,3560,Operational Equipment
North West Leicestershire District Council,31UH,Information Technology,ICT Services,ICT,Chess Cybersecurity Formerly Foursys Ltd,A029908,10/03/2021,1407179,6750,Contract Payments (Other) Ext
North West Leicestershire District Council,31UH,Housing,HRA Older Persons Service,HRAOPS,Citron Hygiene Ltd,A040930,10/03/2021,1407184,472.95,Hygeine Products
North West Leicestershire District Council,31UH,Finance,Financial Planning,FINPLA,Sports & Leisure Management Ltd,A045556,10/03/2021,1407467,34334,Payments To Contractor
North West Leicestershire District Council,31UH,Street Management,Environment Transport,ENOT,Vehicle Inspecition and Training Services,A044049,10/03/2021,1407468,1800,Training Expenses
North West Leicestershire District Council,31UH,Street Management,Environment Transport,ENOT,Malvern Tyres,A035175,10/03/2021,1407481,351,Transport Costs - Tyres
North West Leicestershire District Council,31UH,Planning & Development,Environment - Development Control,EDC,TMP Worldwide Ltd,A045319,10/03/2021,1407505,375.76,Advertising
North West Leicestershire District Council,31UH,Property Services,Property Commercial Lettings,PROPCL,Land Survey Solutions Ltd,A046631,10/03/2021,1407506,2685,Consultants Fees
North West Leicestershire District Council,31UH,Street Management,Environment - Street Scene,ESS,KIWA CMT Testing,A045670,10/03/2021,1407528,1090,External Legal Fees & Advice
North West Leicestershire District Council,31UH,Information Technology,ICT Services,ICT,Cuttlefish Multimedia Ltd,A032102,10/03/2021,1407530,1718.33,Website Maintenance
North West Leicestershire District Council,31UH,Street Management,Environment Transport,ENOT,S & B Tyres Limited,A034071,10/03/2021,1407562,250,Transport Costs - Tyres
North West Leicestershire District Council,31UH,Housing Repairs,HRA Housing Repairs & Maintenance,HRAHRM,Summers Inman,A045259,10/03/2021,1406628,495,Legal & Professional Services
North West Leicestershire District Council,31UH,Chief Exec,Chief Executive,CHEX,Edwards & Edwards Consultancy Ltd,A041694,10/03/2021,1407513,1080,Consultants Fees
North West Leicestershire District Council,31UH,Housing,HRA Housing Management,HRAHM,Readings Property Group Ltd,A045486,10/03/2021,1407527,325,Legal & Professional Services
North West Leicestershire District Council,31UH,Corporate Director,Human Resources,HR,Specsavers Corporate Eyecare,A028625,10/03/2021,1407529,525,Eyecare Vouchers
North West Leicestershire District Council,31UH,Planning & Development,Environment - Town Centre/CCTV,ECCTV,Restore Technology,A046676,10/03/2021,1407532,905,Consultants Fees
North West Leicestershire District Council,31UH,Street Management,Environment Transport,ENOT,Watling JCB Ltd,A032114,10/03/2021,1407558,628.22,Non Scheduled Maintenance - Parts
North West Leicestershire District Council,31UH,Street Management,Environment Transport,ENOT,K Irvine Plant UK Ltd,A041659,10/03/2021,1407570,485.21,Non Scheduled Maintenance - Parts
North West Leicestershire District Council,31UH,Street Management,Environment Transport,ENOT,Vehicle Inspecition and Training Services,A044049,10/03/2021,1407469,670,Training Expenses
North West Leicestershire District Council,31UH,Street Management,Environment Transport,ENOT,Vehicle Inspecition and Training Services,A044049,10/03/2021,1407470,470,Training Expenses
North West Leicestershire District Council,31UH,Street Management,Environment Transport,ENOT,Mobile Hydraulics Ltd,A001131,10/03/2021,1407493,256.54,Repairs - Parts
North West Leicestershire District Council,31UH,Housing Strategy,Community - Housing Strategy,HS,TQ Hotels Ltd,A046382,10/03/2021,1407500,471.43,homeless prevention Expenditure
North West Leicestershire District Council,31UH,Planning & Development,Environment - Development Control,EDC,Rob Thompson Urbanism Limited,A045846,10/03/2021,1407502,4462.5,Consultants Fees
North West Leicestershire District Council,31UH,Planning & Development,Environment - Development Control,EDC,Wildwood Forestry,A046478,10/03/2021,1407503,9775,River Mease Project
North West Leicestershire District Council,31UH,Planning & Development,Environment - Development Control,EDC,Jeremy Benn Associates Ltd (t/a JBA Consulting),A044010,10/03/2021,1407504,630,River Mease Project
North West Leicestershire District Council,31UH,Housing Repairs,HRA Housing Repairs & Maintenance,HRAHRM,Michael Dyson Associates Ltd,A028431,10/03/2021,1407508,756,Legal & Professional Services
North West Leicestershire District Council,31UH,Street Management,Environment Parks,ENOP,Green Garden,A041601,10/03/2021,1407547,1140,Operational Purchases
North West Leicestershire District Council,31UH,Housing,HRA Performance & Business Support,HRAPBS,One Consulting,A046600,10/03/2021,1405116,4922.5,Housing Healthcheck Recomendations
North West Leicestershire District Council,31UH,Street Management,Environment - Street Scene,ESS,SLH Planning Solutions Limited,A044102,10/03/2021,1406901,3347.1,Consultants Fees
North West Leicestershire District Council,31UH,Street Management,Environment Waste Management,ENOWM,Whitespace Work Software Ltd,A041243,10/03/2021,1407187,720,Operational Equipment
North West Leicestershire District Council,31UH,Street Management,Environment - Street Scene,ESS,Metric Group Ltd (Sales),A028996,10/03/2021,1407463,261,Subscriptions
North West Leicestershire District Council,31UH,Street Management,Environment Parks,ENOP,Salix River & Wetland Services Ltd,A046698,10/03/2021,1407466,2640,Operational Equipment
North West Leicestershire District Council,31UH,Street Management,Environment Parks,ENOP,Barcham Tree PLC,A034582,10/03/2021,1407546,4368,Operational Purchases
North West Leicestershire District Council,31UH,Corporate Director,Human Resources,HR,Thomas International Uk Ltd,A001656,10/03/2021,1407596,6500,Personality Profiles
North West Leicestershire District Council,31UH,Street Management,Environment Transport,ENOT,Terberg Matec UK Limited,A001647,10/03/2021,1407615,608.15,Repairs - Parts
North West Leicestershire District Council,31UH,Information Technology,ICT Services,ICT,Freedom Communications (UK) Ltd,A032826,10/03/2021,1407635,667.36,C.O. - Call Charges
North West Leicestershire District Council,31UH,Street Management,Environment - Street Scene,ESS,DarntonB3 Limited,A045505,10/03/2021,1407640,1772.5,Contract Payments (Other) Ext
North West Leicestershire District Council,31UH,Finance,Financial Planning,FINPLA,Michael Page International Recruitment Ltd,A041893,10/03/2021,1407644,2100,Agency Staff
North West Leicestershire District Council,31UH,Corporate Director,Human Resources,HR,Wider Plan Ltd,A043948,10/03/2021,1407652,1275,Staff Benefit Scheme
North West Leicestershire District Council,31UH,Street Management,Environment - Street Scene,ESS,Harborough District Council,A008631,10/03/2021,1407658,6370.15,Contaminated Land Officer
North West Leicestershire District Council,31UH,Property Services,Property Commercial Lettings,PROPCL,IDP Group,A045557,10/03/2021,1407080,3900,Consultants Fees
North West Leicestershire District Council,31UH,Property Services,Property Facilities Management,PROPFM,Leicestershire County Council,A037238,10/03/2021,1407204,277,Signs & Notices
North West Leicestershire District Council,31UH,Street Management,Environment Transport,ENOT,Riverside Truck Rental Ltd,A045702,10/03/2021,1407587,2448.3,Hire of Transport
North West Leicestershire District Council,31UH,Street Management,Environment Transport,ENOT,Riverside Truck Rental Ltd,A045702,10/03/2021,1407588,3580,Hire Of Transport
North West Leicestershire District Council,31UH,Street Management,Environment Transport,ENOT,Riverside Truck Rental Ltd,A045702,10/03/2021,1407589,1400,Hire Of Transport
North West Leicestershire District Council,31UH,Housing,HRA Housing Management,HRAHM,Readings Property Group Ltd,A045486,10/03/2021,1407591,250,Legal & Professional Services
North West Leicestershire District Council,31UH,Street Management,Environment Transport,ENOT,Terberg Matec UK Limited,A001647,10/03/2021,1407601,1372.16,Repairs - Parts
North West Leicestershire District Council,31UH,Street Management,Environment Transport,ENOT,Terberg Matec UK Limited,A001647,10/03/2021,1407602,487.74,Non Scheduled Maintenance - Parts
North West Leicestershire District Council,31UH,Street Management,Environment Transport,ENOT,Certas Energy Uk Ltd,A043448,10/03/2021,1407617,507.2,Fuel
North West Leicestershire District Council,31UH,Economic Development,Business Focus Group,BFG,Arch Communications (UK) Ltd,A046458,10/03/2021,1407622,1000,Consultants Fees
North West Leicestershire District Council,31UH,Property Services,Property Commercial Lettings,PROPCL,IDP Group,A045557,10/03/2021,1407643,6050,Consultants Fees
North West Leicestershire District Council,31UH,Housing,HRA Housing Management,HRAHM,Readings Property Group Ltd,A045486,10/03/2021,1407646,375,Legal & Professional Services
North West Leicestershire District Council,31UH,Property Services,Property Facilities Management,PROPFM,IDP Group,A045557,10/03/2021,1407649,1000,Consultants Fees
North West Leicestershire District Council,31UH,Street Management,Environment - Street Scene,ESS,RAS Town Planning Services,A045293,10/03/2021,1407659,2964,Consultants Fees
North West Leicestershire District Council,31UH,Street Management,Environment Transport,ENOT,Certas Energy Uk Ltd,A043448,10/03/2021,1407545,14519.51,Fuel
North West Leicestershire District Council,31UH,Property Services,Property Commercial Lettings,PROPCL,Pitney Bowes Finance Plc,A032630,10/03/2021,1407624,289.88,Equipment Operating Leases
North West Leicestershire District Council,31UH,Planning & Development,Environment - Development Control,EDC,Ilex Tree Services,A046556,10/03/2021,1407677,1241,External Legal Fees & Advice
North West Leicestershire District Council,31UH,Planning & Development,Environment - Development Control,EDC,Jeremy Benn Associates Ltd (t/a JBA Consulting),A044010,10/03/2021,1407678,1220,River Mease Project
North West Leicestershire District Council,31UH,Property Services,Property Commercial Lettings,PROPCL,Coalville Cleaning Services,A003037,10/03/2021,1407709,653.25,Contract Cleaning
North West Leicestershire District Council,31UH,Street Management,Environment Transport,ENOT,Alliance Contracting Solutions Ltd,A043325,10/03/2021,1406324,3978.76,Contract Payments (Other) Ext
North West Leicestershire District Council,31UH,Finance,Financial Planning,FINPLA,Hinckley & Bosworth Borough Council,A000770,10/03/2021,1407036,38918,Shared Revs & Bens Partnership costs
North West Leicestershire District Council,31UH,Street Management,Environment Parks,ENOP,Sherriff Amenity,A034991,10/03/2021,1407621,2408,Operational Purchases
North West Leicestershire District Council,31UH,Planning & Development,Environment - Development Control,EDC,GHM Planning Limited,A034296,10/03/2021,1407674,2802,Agency Staff
North West Leicestershire District Council,31UH,Planning & Development,Environment - Development Control,EDC,GHM Planning Limited,A034296,10/03/2021,1407675,2853.5,Agency Staff
North West Leicestershire District Council,31UH,Planning & Development,Environment - Development Control,EDC,TMP Worldwide Ltd,A045319,10/03/2021,1407676,401.28,Advertising
North West Leicestershire District Council,31UH,Communications,Corporate - Communications,CP,Reflec Signs & Graphics Ltd,A025348,10/03/2021,1407681,352,Advertising
North West Leicestershire District Council,31UH,Economic Development,Business Focus Group,BFG,Leicester & Leicestershire Enterprise Partnership,A042107,10/03/2021,1407682,2000,Operational Equipment
North West Leicestershire District Council,31UH,Street Management,Environment Transport,ENOT,Michelin Tyre Plc,A046127,10/03/2021,1407694,252.66,Transport Costs - Tyres
North West Leicestershire District Council,31UH,Chief Exec,Chief Executive,CHEX,Leicestershire County Council,A000950,10/03/2021,1406254,5000,Community Safety Expenditure
North West Leicestershire District Council,31UH,Property Services,Property Facilities Management,PROPFM,John Merison BMC Ltd,A001092,10/03/2021,1406660,971.6,General Repairs
North West Leicestershire District Council,31UH,Property Services,Property Commercial Lettings,PROPCL,John Merison BMC Ltd,A001092,10/03/2021,1407177,338.99,General Repairs
North West Leicestershire District Council,31UH,Housing Repairs,HRA Housing Repairs & Maintenance,HRAHRM,Nuaire Trading Division of Polypipe Ltd,A045655,17/03/2021,1405421,2520,Non Scheduled Maintenance - Parts
North West Leicestershire District Council,31UH,Property Services,Property Facilities Management,PROPFM,TECSERV UK LIMITED,A028261,17/03/2021,1406268,1357,General Repairs
North West Leicestershire District Council,31UH,Information Technology,ICT Services,ICT,Oracle Corporation UK Ltd.,A036174,17/03/2021,1407680,729.36,Admin Equipment - Maintenance
North West Leicestershire District Council,31UH,Information Technology,ICT Services,ICT,Nettitude Limited,A043672,17/03/2021,1407693,4800,Consultants Fees
North West Leicestershire District Council,31UH,Leisure & Culture,Sport & Physical Activity,SPA,Leisure-Net Solutions,A042111,17/03/2021,1407820,1542,NLRF Monitoring and Evaluation Grant
North West Leicestershire District Council,31UH,Chief Exec,Chief Executive,CHEX,IDP Group,A045557,17/03/2021,1407822,3750,Consultants Fees
North West Leicestershire District Council,31UH,Chief Exec,Chief Executive,CHEX,IDP Group,A045557,17/03/2021,1407824,1425,Advertising
North West Leicestershire District Council,31UH,Chief Exec,Chief Executive,CHEX,Sable Leigh Consultancy Ltd T/A SLC Rail,A042727,17/03/2021,1407825,875,Consultants Fees
North West Leicestershire District Council,31UH,Corporate Director,Human Resources,HR,Wider Plan Ltd,A043948,17/03/2021,1407827,1269,Staff Benefit Scheme
North West Leicestershire District Council,31UH,Economic Development,Business Focus Group,BFG,Sustrans Ltd,A046467,17/03/2021,1407828,13394,Consultants Fees
North West Leicestershire District Council,31UH,Planning & Development,Environment Community Planning,ECP,Age UK Leics & Rutland,A041115,17/03/2021,1407834,21560,Grants
North West Leicestershire District Council,31UH,Finance,Financial Planning,FINPLA,Macildowie Associates Ltd,A046022,17/03/2021,1407843,1565.67,Agency Staff
North West Leicestershire District Council,31UH,Finance,Financial Planning,FINPLA,Macildowie Associates Ltd,A046022,17/03/2021,1407844,1959.48,Agency Staff
North West Leicestershire District Council,31UH,Housing Repairs,HRA Housing Repairs & Maintenance,HRAHRM,T & S Heating Ltd,A046054,17/03/2021,1407851,456.82,Housing repairs
North West Leicestershire District Council,31UH,Street Management,Environment Transport,ENOT,Pakawaste Ltd,A032627,17/03/2021,1407852,1560,Operational Equipment
North West Leicestershire District Council,31UH,Corporate Director,Human Resources,HR,TMP Worldwide Ltd,A045319,17/03/2021,1407853,1685,Advertising
North West Leicestershire District Council,31UH,Street Management,Environment - Street Scene,ESS,ADT Fire And Security,A000021,17/03/2021,1407854,269.89,Security Services
North West Leicestershire District Council,31UH,Information Technology,ICT Services,ICT,Premier Paper Group,A042438,17/03/2021,1407871,552.59,Consumable Materials
North West Leicestershire District Council,31UH,Property Services,Property Facilities Management,PROPFM,Regarde Security Ltd,A013049,17/03/2021,1407878,504,Security Services
North West Leicestershire District Council,31UH,Property Services,Property Facilities Management,PROPFM,Regarde Security Ltd,A013049,17/03/2021,1407883,342,Security Services
North West Leicestershire District Council,31UH,Housing,HRA Housing Management,HRAHM,Readings Property Group Ltd,A045486,17/03/2021,1407826,425,Legal & Professional Services
North West Leicestershire District Council,31UH,Leisure & Culture,Sport & Physical Activity,SPA,Kimbles Music & Movement Ltd,A035950,17/03/2021,1407839,270,Least Active Children & Adults Project
North West Leicestershire District Council,31UH,Housing Repairs,HRA Housing Repairs & Maintenance,HRAHRM,Travis Perkins Trading Co Ltd,A001693,17/03/2021,1407848,3319.98,General Materials
North West Leicestershire District Council,31UH,Housing Repairs,HRA Housing Repairs & Maintenance,HRAHRM,Travis Perkins Trading Co Ltd,A001693,17/03/2021,1407864,885,General Materials
North West Leicestershire District Council,31UH,Housing Repairs,HRA Housing Repairs & Maintenance,HRAHRM,Travis Perkins Trading Co Ltd,A001693,17/03/2021,1407865,126584.34,General Materials
North West Leicestershire District Council,31UH,Street Management,Environment - Street Scene,ESS,Clockwork City Limited,A045987,17/03/2021,1407904,3300,Contract Payments (Other) Ext
North West Leicestershire District Council,31UH,Leisure & Culture,Sport & Physical Activity,SPA,"Knight, Kavanagh & Page",A043152,17/03/2021,1407868,4884,Health and Wellbeing Strategy Payment
North West Leicestershire District Council,31UH,Property Services,Property Facilities Management,PROPFM,Coalville Cleaning Services,A003037,17/03/2021,1407875,2601,Contract Cleaning
North West Leicestershire District Council,31UH,Property Services,Property Commercial Lettings,PROPCL,Coalville Cleaning Services,A003037,17/03/2021,1407877,347.53,General Repairs
North West Leicestershire District Council,31UH,Property Services,Property Facilities Management,PROPFM,Regarde Security Ltd,A013049,17/03/2021,1407879,317.1,Security Services
North West Leicestershire District Council,31UH,Property Services,Property Facilities Management,PROPFM,IDP Group,A045557,17/03/2021,1407884,2000,Consultants Fees
North West Leicestershire District Council,31UH,Economic Development,Business Focus Group,BFG,Simtec Materials Testing Ltd,A046680,17/03/2021,1407910,1295.2,PRE - Feasability Work
North West Leicestershire District Council,31UH,Street Management,Environment - Street Scene,ESS,Crowngate Construction Professional Building Services Ltd,A046501,17/03/2021,1407914,91105.69,Contract Payments (Other) Ext
North West Leicestershire District Council,31UH,Street Management,Environment Transport,ENOT,Safety-Kleen Uk Ltd,A001431,17/03/2021,1407915,350.91,Hygeine Products
North West Leicestershire District Council,31UH,Street Management,Environment Transport,ENOT,Second 2 None,A031408,17/03/2021,1407919,7030,Contract Cleaning
North West Leicestershire District Council,31UH,Property Services,Property Facilities Management,PROPFM,Calbarrie Ltd,A021932,17/03/2021,1407889,278.5,General Repairs
North West Leicestershire District Council,31UH,Street Management,Environment Parks,ENOP,Regarde Security Ltd,A013049,17/03/2021,1407593,283.5,Security Services
North West Leicestershire District Council,31UH,Communications,Corporate - Communications,CP,The Professional Promotion Company Ltd,A043727,17/03/2021,1407645,5140,Cleaning & Domestic Equipment
North West Leicestershire District Council,31UH,Information Technology,ICT Services,ICT,Capita Business Services Ltd,A002968,17/03/2021,1407913,508.14,Computing
North West Leicestershire District Council,31UH,Chief Exec,Chief Executive,CHEX,IDP Group,A045557,17/03/2021,1407945,1425,Advertising
North West Leicestershire District Council,31UH,Property Services,Property Commercial Lettings,PROPCL,Geze Uk Limited,A023130,17/03/2021,1407951,504.54,General Repairs
North West Leicestershire District Council,31UH,Street Management,Environment Transport,ENOT,Westbury Industrial Supplies Limited,A009933,17/03/2021,1407956,510,Protective Clothing
North West Leicestershire District Council,31UH,Street Management,Environment Transport,ENOT,Cuckoo Gap Limited,A000438,17/03/2021,1407962,500,General Repairs
North West Leicestershire District Council,31UH,Property Services,Property Facilities Management,PROPFM,Geze Uk Limited,A023130,17/03/2021,1407963,642.84,General Repairs
North West Leicestershire District Council,31UH,Property Services,Property Facilities Management,PROPFM,Geze Uk Limited,A023130,17/03/2021,1407964,350,General Repairs
North West Leicestershire District Council,31UH,Property Services,Property Facilities Management,PROPFM,Geze Uk Limited,A023130,17/03/2021,1407965,2987.83,General Repairs
North West Leicestershire District Council,31UH,Housing Repairs,HRA Housing Repairs & Maintenance,HRAHRM,Terratruck Distribution Services Ltd,A001648,17/03/2021,1407988,677.32,Operational Purchases
North West Leicestershire District Council,31UH,Economic Development,Business Focus Group,BFG,InTechnology PLC,A045016,17/03/2021,1407993,5266.66,Extend Free WiFi in Key Towns
North West Leicestershire District Council,31UH,Housing Repairs,HRA Housing Repairs & Maintenance,HRAHRM,Dalrod UK Ltd,A046051,17/03/2021,1408121,4233.34,Sewerage & Environmental
North West Leicestershire District Council,31UH,Housing Repairs,HRA Housing Repairs & Maintenance,HRAHRM,City Electrical Factors Limited,A035306,17/03/2021,1408127,318,Operational Equipment - Rep & Maint
North West Leicestershire District Council,31UH,Legal & Democratic,Electoral & Land Charges,LDELC,Leicestershire County Council,A027423,17/03/2021,1407937,1986,LCC Search Fees
North West Leicestershire District Council,31UH,Legal & Democratic,Electoral & Land Charges,LDELC,Leicestershire County Council,A027423,17/03/2021,1407938,2500,LCC Search Fees
North West Leicestershire District Council,31UH,Legal & Democratic,Electoral & Land Charges,LDELC,Leicestershire County Council,A027423,17/03/2021,1407939,4074,LCC Search Fees
North West Leicestershire District Council,31UH,Legal & Democratic,Electoral & Land Charges,LDELC,Leicestershire County Council,A027423,17/03/2021,1407940,3127,LCC Search Fees
North West Leicestershire District Council,31UH,Legal & Democratic,Electoral & Land Charges,LDELC,Leicestershire County Council,A027423,17/03/2021,1407941,1810,LCC Search Fees
North West Leicestershire District Council,31UH,Legal & Democratic,Electoral & Land Charges,LDELC,Leicestershire County Council,A027423,17/03/2021,1407942,2005,LCC Search Fees
North West Leicestershire District Council,31UH,Property Services,Property Facilities Management,PROPFM,Logic Fire and Security Ltd,A044439,17/03/2021,1407950,498.36,Fire Precaution Appliances
North West Leicestershire District Council,31UH,Finance,Financial Planning,FINPLA,Leicestershire County Council,A000950,17/03/2021,1407952,500,Added Years/Capital Cost
North West Leicestershire District Council,31UH,Finance,Financial Planning,FINPLA,Wilks Head & Eve LLP,A041842,17/03/2021,1407957,720,Legal & Professional Services
North West Leicestershire District Council,31UH,Leisure & Culture,Sport & Physical Activity,SPA,ME Sports in the Community CIC,A046466,17/03/2021,1407961,400,Least Active Children & Adults Project
North West Leicestershire District Council,31UH,Chief Exec,Chief Executive,CHEX,Edwards & Edwards Consultancy Ltd,A041694,17/03/2021,1407991,1320,Legal & Professional Services
North West Leicestershire District Council,31UH,Property Services,Property Facilities Management,PROPFM,IDP Group,A045557,17/03/2021,1408119,3900,Consultants Fees
North West Leicestershire District Council,31UH,Housing Repairs,HRA Housing Repairs & Maintenance,HRAHRM,Screwfix Direct,A014681,17/03/2021,1408126,333.33,General Repairs
North West Leicestershire District Council,31UH,Finance,Financial Planning,FINPLA,Sports & Leisure Management Ltd,A045556,17/03/2021,1408163,878863.33,Contract Payments (Other) Ext
North West Leicestershire District Council,31UH,Street Management,Environment - Street Scene,ESS,Keltic,A030776,17/03/2021,1407616,649.7,Protective Clothing
North West Leicestershire District Council,31UH,Environmental Health,Environmental Health & Licensing,EEHL,Tennals Pest Control,A045705,17/03/2021,1408133,697.83,External Contractor Payments
North West Leicestershire District Council,31UH,Housing,HRA Housing Management,HRAHM,Aareon UK Ltd,A045197,17/03/2021,1408134,1740,Contract Payments (Other) Ext
North West Leicestershire District Council,31UH,Housing,HRA Housing Management,HRAHM,Aareon UK Ltd,A045197,17/03/2021,1408135,1740,Contract Payments (Other) Ext
North West Leicestershire District Council,31UH,Corporate Director,Human Resources,HR,The Disclosure & Barring Service,A027625,18/03/2021,1408187,280,DBS Checks
North West Leicestershire District Council,31UH,Information Technology,ICT Services,ICT,Phoenix Software Limited,A001298,24/03/2021,1407605,6200,Admin Equipment - Maintenance
North West Leicestershire District Council,31UH,Communications,Corporate - Customer Services,CS,Quadient UK Ltd,A000079,24/03/2021,1407934,2175.62,Equipment Operating Leases
North West Leicestershire District Council,31UH,Corporate Director,Human Resources,HR,East Midlands Councils,A008942,24/03/2021,1407967,550,Corporate Training
North West Leicestershire District Council,31UH,Environmental Health,Environmental Health & Licensing,EEHL,RH Environmental Limited,A037505,24/03/2021,1407989,2550,Training Expenses
North West Leicestershire District Council,31UH,Street Management,Environment Transport,ENOT,Calor Gas Limited,A032686,24/03/2021,1408196,1368.41,Gas
North West Leicestershire District Council,31UH,Economic Development,Business Focus Group,BFG,Thomas Lister Ltd,A045975,24/03/2021,1408197,2100,PRE - Public Realm Masterplan
North West Leicestershire District Council,31UH,Finance,Financial Planning,FINPLA,Macildowie Associates Ltd,A046022,24/03/2021,1408199,1565.67,Agency Staff
North West Leicestershire District Council,31UH,Finance,Financial Planning,FINPLA,Macildowie Associates Ltd,A046022,24/03/2021,1408200,2027.52,Agency Staff
North West Leicestershire District Council,31UH,Finance,Revenues,REVS,Hinckley & Bosworth Borough Council,A000770,24/03/2021,1408201,206540.68,Shared Revs & Bens Partnership costs
North West Leicestershire District Council,31UH,Leisure & Culture,Cultural Services TIC,CULTIC,Leicestershire County Council,A000950,24/03/2021,1408202,675,Premises Rents
North West Leicestershire District Council,31UH,Corporate Director,Human Resources,HR,Kalu Training and Consultancy,A043918,24/03/2021,1408207,3960,Corporate Training
North West Leicestershire District Council,31UH,Information Technology,ICT Services,ICT,Six Degrees Technology Group Ltd,A044205,24/03/2021,1408250,10597.9,Admin Equipment - Maintenance
North West Leicestershire District Council,31UH,Information Technology,ICT Services,ICT,Six Degrees Technology Group Ltd,A044205,24/03/2021,1408251,22735.52,Admin Equipment - Maintenance
North West Leicestershire District Council,31UH,Information Technology,ICT Services,ICT,Six Degrees Technology Group Ltd,A044205,24/03/2021,1408252,2883,Admin Equipment - Maintenance
North West Leicestershire District Council,31UH,Housing,HRA Older Persons Service,HRAOPS,Tunstall Healthcare (UK) Limited,A001701,24/03/2021,1407161,750,Alarm System Telephones
North West Leicestershire District Council,31UH,Chief Exec,Chief Executive,CHEX,Pollards Fruit & Veg,A045637,24/03/2021,1407599,300,Food Deliveries
North West Leicestershire District Council,31UH,Housing,HRA Housing Management,HRAHM,Readings Property Group Ltd,A045486,24/03/2021,1408214,250,Legal & Professional Services
North West Leicestershire District Council,31UH,Housing,HRA Housing Management,HRAHM,Readings Property Group Ltd,A045486,24/03/2021,1408215,325,Legal & Professional Services
North West Leicestershire District Council,31UH,Communications,Corporate - Communications,CP,Hinckley & Bosworth Borough Council,A000770,24/03/2021,1408284,729,Advertising
North West Leicestershire District Council,31UH,Leisure & Culture,Cultural Services Arts & Events,CULTEV,Leighs Workshop,A046708,24/03/2021,1408287,500,N.W.L. Arts Festival
North West Leicestershire District Council,31UH,Leisure & Culture,Cultural Services Arts & Events,CULTEV,Ashby De La Zouch Town Council,A000091,24/03/2021,1408290,300,Ashby Events - Road Closures
North West Leicestershire District Council,31UH,Housing,HRA Housing Management,HRAHM,Aareon UK Ltd,A045197,24/03/2021,1408361,363.75,Contract Payments (Other) Ext
North West Leicestershire District Council,31UH,Housing,HRA Housing Management,HRAHM,Aareon UK Ltd,A045197,24/03/2021,1408362,250,Contract Payments (Other) Ext
North West Leicestershire District Council,31UH,Finance,Exchequer Services,EXCH,Embridge Consulting (UK) Ltd,A046643,24/03/2021,1408365,45630,Computer Development
North West Leicestershire District Council,31UH,Finance,Exchequer Services,EXCH,Embridge Consulting (UK) Ltd,A046643,24/03/2021,1408368,2637,Contract Payments (Other) Ext
North West Leicestershire District Council,31UH,Finance,Exchequer Services,EXCH,Embridge Consulting (UK) Ltd,A046643,24/03/2021,1408369,675,Contract Payments (Other) Ext
North West Leicestershire District Council,31UH,Information Technology,ICT Services,ICT,Firmstep,A030931,24/03/2021,1408220,5988.07,Corporate IT Licences
North West Leicestershire District Council,31UH,Leisure & Culture,Sport & Physical Activity,SPA,Ibstock Community College,A000804,24/03/2021,1408227,280.5,Least Active Children & Adults Project
North West Leicestershire District Council,31UH,Leisure & Culture,Cultural Services Arts & Events,CULTEV,Field and Lawn Ltd,A042594,24/03/2021,1408232,750,Coalville Christmas Decorations
North West Leicestershire District Council,31UH,Corporate Director,Human Resources,HR,Delib,A039059,24/03/2021,1408275,7995,Software Licences
North West Leicestershire District Council,31UH,Finance,Financial Planning,FINPLA,Michael Page International Recruitment Ltd,A041893,24/03/2021,1408278,1680,Agency Staff
North West Leicestershire District Council,31UH,Street Management,Environment Transport,ENOT,Westbury Industrial Supplies Limited,A009933,24/03/2021,1408286,364.69,Operational Purchases
North West Leicestershire District Council,31UH,Leisure & Culture,Cultural Services Arts & Events,CULTEV,Planning Solutions Consulting Limited,A046491,24/03/2021,1408292,7400,Consultants Fees
North West Leicestershire District Council,31UH,Street Management,Environment - Street Scene,ESS,SLH Planning Solutions Limited,A044102,24/03/2021,1408378,5062.5,Consultants Fees
North West Leicestershire District Council,31UH,Housing,HRA Housing Management,HRAHM,Readings Property Group Ltd,A045486,24/03/2021,1408383,900,Legal & Professional Services
North West Leicestershire District Council,31UH,Leisure & Culture,Cultural Services Arts & Events,CULTEV,Leicester Shire Promotions Ltd,A028765,24/03/2021,1408384,2500,Special Events
North West Leicestershire District Council,31UH,Leisure & Culture,Cultural Services Arts & Events,CULTEV,Leicester Shire Promotions Ltd,A028765,24/03/2021,1408385,9620,Special Events
North West Leicestershire District Council,31UH,Information Technology,ICT Services,ICT,ACS Systems (UK) Ltd T/a ACS Office Solutions,A043447,24/03/2021,1408390,1460,Computing
North West Leicestershire District Council,31UH,Street Management,Environment Transport,ENOT,J F Lloyd & Sons,A000991,24/03/2021,1408395,250,Hire Of Operational Equipment
North West Leicestershire District Council,31UH,Street Management,Environment Transport,ENOT,Mertrux Ltd,A035291,30/03/2021,1408225,256.39,Repairs - Parts
North West Leicestershire District Council,31UH,Housing Repairs,HRA Housing Repairs & Maintenance,HRAHRM,Halsall Lloyd Partnership,A045973,30/03/2021,1408360,805.69,Legal & Professional Services
North West Leicestershire District Council,31UH,Street Management,Environment Transport,ENOT,Terberg Matec UK Limited,A001647,30/03/2021,1408387,711.97,Repairs - Parts
North West Leicestershire District Council,31UH,Planning & Development,Environment Planning Policy,EPP,GHM Planning Limited,A034296,30/03/2021,1408438,1670,Consultants Fees
North West Leicestershire District Council,31UH,Communications,Corporate - Communications,CP,TMP Worldwide Ltd,A045319,30/03/2021,1408440,747.8,Advertising
North West Leicestershire District Council,31UH,Environmental Health,Environmental Health & Licensing,EEHL,VIP-System Limited,A045326,30/03/2021,1408444,874.95,Hackney Carriage - Plates & Badges
North West Leicestershire District Council,31UH,Information Technology,ICT Services,ICT,Phoenix Software Limited,A001298,30/03/2021,1408221,621.84,Admin Equipment - Maintenance
North West Leicestershire District Council,31UH,Leisure & Culture,Sport & Physical Activity,SPA,Elliott Group Limited,A005413,30/03/2021,1408229,472,Secure Storage and portable Accomodation
North West Leicestershire District Council,31UH,Finance,Financial Planning,FINPLA,Macildowie Associates Ltd,A046022,30/03/2021,1408461,2041.13,Agency Staff
North West Leicestershire District Council,31UH,Street Management,Environment Transport,ENOT,Watling JCB Ltd,A032114,30/03/2021,1408495,265,Scheduled Servicing - Parts
North West Leicestershire District Council,31UH,Street Management,Environment Transport,ENOT,Watling JCB Ltd,A032114,30/03/2021,1408496,529,Scheduled Servicing - Parts
North West Leicestershire District Council,31UH,Street Management,Environment Transport,ENOT,Tough Technology Products Ltd,A034290,30/03/2021,1408497,276.02,Consumable Materials
North West Leicestershire District Council,31UH,Street Management,Environment Transport,ENOT,S & B Tyres Limited,A034071,30/03/2021,1408505,378,Transport Costs - Tyres
North West Leicestershire District Council,31UH,Street Management,Environment Transport,ENOT,Ford Motor Company T/A Parts Plus,A045765,30/03/2021,1408510,264.04,Repairs - Parts
North West Leicestershire District Council,31UH,Street Management,Environment Transport,ENOT,Parkers The Parts People,A044935,30/03/2021,1408535,309.99,Consumable Materials
North West Leicestershire District Council,31UH,Street Management,Environment Transport,ENOT,Malvern Tyres,A035175,30/03/2021,1408586,415.6,Transport Costs - Tyres
North West Leicestershire District Council,31UH,Street Management,Environment Transport,ENOT,ESPO,A000958,30/03/2021,1408596,405,Cleaning & Domestic Equipment
North West Leicestershire District Council,31UH,Street Management,Environment Transport,ENOT,Parkers The Parts People,A044935,30/03/2021,1408557,299.95,Transport Costs - Engine Oil
North West Leicestershire District Council,31UH,Street Management,Environment Transport,ENOT,Mertrux Ltd,A035291,30/03/2021,1408579,272.15,Scheduled Servicing - Parts
North West Leicestershire District Council,31UH,Street Management,Environment Transport,ENOT,FAROL Limited,A041905,30/03/2021,1408598,1054,Scheduled Servicing - Parts
North West Leicestershire District Council,31UH,Street Management,Environment Transport,ENOT,FAROL Limited,A041905,30/03/2021,1408599,540,Scheduled Servicing - Parts
North West Leicestershire District Council,31UH,Chief Exec,Chief Executive,CHEX,Leicestershire County Council,A000950,30/03/2021,1408131,417.82,Signs & Notices
North West Leicestershire District Council,31UH,Street Management,Environment Transport,ENOT,Mertrux Ltd,A035291,30/03/2021,1408419,257.74,Non Scheduled Maintenance - Parts
North West Leicestershire District Council,31UH,Street Management,Environment Transport,ENOT,Westbury Industrial Supplies Limited,A009933,30/03/2021,1408486,323.79,Cleaning & Domestic Equipment
North West Leicestershire District Council,31UH,Street Management,Environment Transport,ENOT,Ford Motor Company T/A Parts Plus,A045765,30/03/2021,1408513,412.79,Non Scheduled Maintenance - Parts
North West Leicestershire District Council,31UH,Housing Repairs,HRA Housing Repairs & Maintenance,HRAHRM,Terratruck Distribution Services Ltd,A001648,30/03/2021,1407821,688.25,Operational Purchases
North West Leicestershire District Council,31UH,Street Management,Environment Transport,ENOT,Terberg Matec UK Limited,A001647,30/03/2021,1407947,1221.18,Non Scheduled Maintenance - Parts
North West Leicestershire District Council,31UH,Street Management,Environment Transport,ENOT,Terberg Matec UK Limited,A001647,30/03/2021,1407948,295.39,Non Scheduled Maintenance - Parts
North West Leicestershire District Council,31UH,Street Management,Environment Parks,ENOP,Buxton's Ltd,A029426,30/03/2021,1408238,2022.78,Operational Purchases
North West Leicestershire District Council,31UH,Street Management,Environment Parks,ENOP,Central Construction Services,A004448,30/03/2021,1408295,353.06,Operational Purchases
North West Leicestershire District Council,31UH,Leisure & Culture,Sport & Physical Activity,SPA,Amazon Payments UK Ltd,A036743,30/03/2021,1408465,586.58,Least Active Children & Adults Project
North West Leicestershire District Council,31UH,Housing Repairs,HRA Housing Repairs & Maintenance,HRAHRM,Travis Perkins Trading Co Ltd,A001693,30/03/2021,1408480,1180,General Materials
North West Leicestershire District Council,31UH,Housing Repairs,HRA Housing Repairs & Maintenance,HRAHRM,Travis Perkins Trading Co Ltd,A001693,30/03/2021,1408481,108075.09,General Materials
North West Leicestershire District Council,31UH,Housing Repairs,HRA Housing Repairs & Maintenance,HRAHRM,Travis Perkins Trading Co Ltd,A001693,30/03/2021,1408482,3828.75,General Materials
North West Leicestershire District Council,31UH,Street Management,Environment Transport,ENOT,Hako Machines Limited,A034237,30/03/2021,1408603,511.21,Repairs - Parts
North West Leicestershire District Council,31UH,Finance,Exchequer Services,EXCH,Total Mobile,A025004,30/03/2021,1408222,68493,Computer Development
North West Leicestershire District Council,31UH,Street Management,Environment Transport,ENOT,Ford & Slater Group Ltd,A000625,30/03/2021,1408386,405.6,Transport Costs - Engine Oil
North West Leicestershire District Council,31UH,Leisure & Culture,Sport & Physical Activity,SPA,The Apollo Partnership Trust,A034793,30/03/2021,1408613,24300,School Sport Initiative
North West Leicestershire District Council,31UH,Street Management,Environment - Street Scene,ESS,Coalville Cleaning Services,A003037,30/03/2021,1408615,709.8,Contract Cleaning
North West Leicestershire District Council,31UH,Street Management,Environment Transport,ENOT,Parkers The Parts People,A044935,30/03/2021,1408617,369.66,Repairs - Parts
North West Leicestershire District Council,31UH,Property Services,Property Facilities Management,PROPFM,Gleam Team Services Limited,A000129,30/03/2021,1405131,350,Cleaning & Domestic Equipment
North West Leicestershire District Council,31UH,Property Services,Property Facilities Management,PROPFM,Gleam Team Services Limited,A000129,30/03/2021,1405132,420,Cleaning & Domestic Equipment
North West Leicestershire District Council,31UH,Housing,HRA Housing Management,HRAHM,Alliance Contracting Solutions Ltd,A043325,30/03/2021,1408707,41223.08,Car park Improvements
North West Leicestershire District Council,31UH,Street Management,Environment Transport,ENOT,Terberg Matec UK Limited,A001647,30/03/2021,1408710,663.46,Repairs - Parts
North West Leicestershire District Council,31UH,Housing,HRA Housing Management,HRAHM,Alliance Contracting Solutions Ltd,A043325,30/03/2021,1408727,59542.79,Car park Improvements
North West Leicestershire District Council,31UH,Street Management,Environment - Street Scene,ESS,John Merison BMC Ltd,A001092,30/03/2021,1408273,750,General Repairs
North West Leicestershire District Council,31UH,Property Services,Property Facilities Management,PROPFM,RICS,A033386,30/03/2021,1408477,1135,Training Expenses
North West Leicestershire District Council,31UH,Street Management,Environment Transport,ENOT,Westbury Industrial Supplies Limited,A009933,30/03/2021,1408709,389.4,Protective Clothing
North West Leicestershire District Council,31UH,Corporate Director,Human Resources,HR,Health Management Ltd,A038840,30/03/2021,1408711,988,Medical Fees
North West Leicestershire District Council,31UH,Property Services,Property Facilities Management,PROPFM,John Merison BMC Ltd,A001092,30/03/2021,1407943,750.75,General Repairs
North West Leicestershire District Council,31UH,Property Services,Property Facilities Management,PROPFM,Midlands Cooling Services Ltd,A043433,30/03/2021,1408198,250,General Repairs
North West Leicestershire District Council,31UH,Property Services,Property Commercial Lettings,PROPCL,Readings Property Group Ltd,A045486,30/03/2021,1408211,250,Legal & Professional Services
North West Leicestershire District Council,31UH,Property Services,Property Facilities Management,PROPFM,John Merison BMC Ltd,A001092,30/03/2021,1408478,558.37,General Repairs
North West Leicestershire District Council,31UH,Finance,Financial Planning,FINPLA,Macildowie Associates Ltd,A046022,30/03/2021,1408729,1457.78,Agency Staff
North West Leicestershire District Council,31UH,Finance,Financial Planning,FINPLA,Zurich Municipal,A033807,30/03/2021,1408730,5000,Insurances
North West Leicestershire District Council,31UH,Leisure & Culture,Sport & Physical Activity,SPA,FPCR,A046758,30/03/2021,1408732,4000,Street Sport Programme
North West Leicestershire District Council,31UH,Street Management,Environment - Street Scene,ESS,Metric Group Ltd (Repairs),A036055,03/03/2021,1402078,471,Maintenance Contract
North West Leicestershire District Council,31UH,Housing,HRA Housing Management,HRAHM,JLA Limited,A043639,03/03/2021,1407089,282,Cleaning & Domestic Equipment
North West Leicestershire District Council,31UH,Housing Repairs,HRA Housing Repairs & Maintenance,HRAHRM,Sure Maintenance Ltd,A040460,03/03/2021,1407091,1664.22,Plumbing & Heating
North West Leicestershire District Council,31UH,Housing Repairs,HRA Housing Repairs & Maintenance,HRAHRM,Sure Maintenance Ltd,A040460,03/03/2021,1407092,18763.57,Plumbing & Heating
North West Leicestershire District Council,31UH,Housing Repairs,HRA Housing Repairs & Maintenance,HRAHRM,Sure Maintenance Ltd,A040460,03/03/2021,1407093,808.42,Plumbing & Heating
North West Leicestershire District Council,31UH,Housing Repairs,HRA Housing Repairs & Maintenance,HRAHRM,Sure Maintenance Ltd,A040460,03/03/2021,1407094,2372.7,Plumbing & Heating
North West Leicestershire District Council,31UH,Housing Repairs,HRA Housing Repairs & Maintenance,HRAHRM,Sure Maintenance Ltd,A040460,03/03/2021,1407095,989.69,Plumbing & Heating
North West Leicestershire District Council,31UH,Housing Repairs,HRA Housing Repairs & Maintenance,HRAHRM,Sure Maintenance Ltd,A040460,03/03/2021,1407096,9657.9,Plumbing & Heating
North West Leicestershire District Council,31UH,Neighbourhoods & Communities,N & C Neighbourhoods,NACN,Desford Colliery Band,A027567,03/03/2021,1407117,450,Small Grant Scheme
North West Leicestershire District Council,31UH,Legal & Democratic,Electoral & Land Charges,LDELC,Civica Ltd,A021357,03/03/2021,1407121,13375.9,Software Licences
North West Leicestershire District Council,31UH,Finance,Exchequer Services,EXCH,Comensura Limited,A036958,03/03/2021,1407147,18036.21,Agency Staff
North West Leicestershire District Council,31UH,Housing Repairs,HRA Housing Repairs & Maintenance,HRAHRM,PPG Architectural Coatings Ltd,A000876,03/03/2021,1407152,2014.32,Internal Decorations
North West Leicestershire District Council,31UH,Housing Repairs,HRA Housing Repairs & Maintenance,HRAHRM,Timothy Leader,A044312,03/03/2021,1407153,750,External Legal Fees & Advice
North West Leicestershire District Council,31UH,Street Management,Environment - Street Scene,ESS,Animal Care Services Limited,A046488,03/03/2021,1407156,2246.51,Stray Dog Service
North West Leicestershire District Council,31UH,Housing Strategy,Community - Housing Strategy,HS,Redacted- Personal data,A046714,03/03/2021,1407159,400,Homeless prevention Expenditure
North West Leicestershire District Council,31UH,Neighbourhoods & Communities,N & C Neighbourhoods,NACN,Osgathorpe Parish Council,A001251,03/03/2021,1407410,495,Partnership Working
North West Leicestershire District Council,31UH,Legal & Democratic,Legal Services,LDLS,Information Commissioner,A032156,04/03/2021,1407429,2895,Subscriptions
North West Leicestershire District Council,31UH,Finance,Financial Planning,FINPLA,Department for Communities & Local Government,A028518,04/03/2021,1407430,148381.32,Subsidy Receipts & Repayments
North West Leicestershire District Council,31UH,Legal & Democratic,Legal Services,LDLS,Mander Cruickshank Solicitors,A000133,04/03/2021,1407431,228000,Acquisition - Land and Buildings
North West Leicestershire District Council,31UH,Legal & Democratic,Legal Services,LDLS,Straw and Pearce Solicitors,A000133,04/03/2021,1407432,155000,Acquisition - Land and Buildings
North West Leicestershire District Council,31UH,Legal & Democratic,Legal Services,LDLS,Crane and Walton Solicitors,A000133,04/03/2021,1407433,172500,Acquisition - Land and Buildings
North West Leicestershire District Council,31UH,Legal & Democratic,Legal Services,LDLS,Straw and Pearce Solicitors,A000133,04/03/2021,1407434,155000,Acquisition - Land and Buildings
North West Leicestershire District Council,31UH,Legal & Democratic,Legal Services,LDLS,Crane and Walton Solicitors,A000133,04/03/2021,1407435,165000,Acquisition - Land and Buildings
North West Leicestershire District Council,31UH,Legal & Democratic,Legal Services,LDLS,HMRC,A000133,04/03/2021,1407436,5250,Acquisition - Land and Buildings
North West Leicestershire District Council,31UH,Legal & Democratic,Legal Services,LDLS,Timms Solicitors,A000133,04/03/2021,1407437,190000,Acquisition - Land and Buildings
North West Leicestershire District Council,31UH,Finance,Exchequer Services,EXCH,DVLA,A042250,04/03/2021,1407439,1070,Vehicle Tax
North West Leicestershire District Council,31UH,Communications,Corporate - Communications,CP,Quadient UK Ltd,A000079,04/03/2021,1407441,3000,Telephone Charge / Rental
North West Leicestershire District Council,31UH,Finance,Revenues,REVS,Redacted- Personal data,A000133,04/03/2021,1407442,500,Test and Trace Grants
North West Leicestershire District Council,31UH,Finance,Revenues,REVS,Redacted- Personal data,A000133,04/03/2021,1407443,500,Test and Trace Grants
North West Leicestershire District Council,31UH,Finance,Revenues,REVS,Redacted- Personal data,A000133,04/03/2021,1407444,500,Test and Trace Grants
North West Leicestershire District Council,31UH,Finance,Revenues,REVS,Redacted- Personal data,A000133,04/03/2021,1407445,500,Test and Trace Grants
North West Leicestershire District Council,31UH,Finance,Revenues,REVS,Redacted- Personal data,A000133,04/03/2021,1407446,500,Test and Trace Grants
North West Leicestershire District Council,31UH,Finance,Revenues,REVS,Redacted- Personal data,A000133,04/03/2021,1407447,500,Test and Trace Grants
North West Leicestershire District Council,31UH,Finance,Financial Planning,FINPLA,Department for Communities & Local Government,A028518,04/03/2021,1407454,4267610,Subsidy Receipts & Repayments
North West Leicestershire District Council,31UH,Finance,Financial Planning,FINPLA,Leicestershire County Council,A000950,04/03/2021,1407455,4683569,Precept
North West Leicestershire District Council,31UH,Finance,Financial Planning,FINPLA,The Office of the Police and Crime Commissioner for Leicestershire,A007096,04/03/2021,1407456,812893.02,Precept
North West Leicestershire District Council,31UH,Finance,Financial Planning,FINPLA,"Leicester, Leicestershire & Rutland Combined Fire Authority",A028339,04/03/2021,1407457,236911,Precept
North West Leicestershire District Council,31UH,Finance,Financial Planning,FINPLA,Leicestershire County Council,A000950,04/03/2021,1407458,1988179,Precept
North West Leicestershire District Council,31UH,Finance,Exchequer Services,EXCH,H M Land Registry,A000713,04/03/2021,1407459,281,Legal & Professional Services
North West Leicestershire District Council,31UH,Finance,Exchequer Services,EXCH,ESPO,A000958,04/03/2021,1407460,1637.71,Gas
North West Leicestershire District Council,31UH,Housing,HRA Performance & Business Support,HRAPBS,Corvid Paygate Ltd,A043549,10/03/2021,1407108,324.26,Computing
North West Leicestershire District Council,31UH,Housing Strategy,Community - Housing Strategy,HS,Redacted- Personal data,A046715,10/03/2021,1407185,250,Homeless prevention Expenditure
North West Leicestershire District Council,31UH,Legal & Democratic,Legal Services,LDLS,Cornerstone Barristers,A039753,10/03/2021,1407213,600,Legal & Professional Services
North West Leicestershire District Council,31UH,Finance,Exchequer Services,EXCH,Click Travel Ltd,A044308,10/03/2021,1407221,4355.45,Travel and Subsistence
North West Leicestershire District Council,31UH,Information Technology,ICT Services,ICT,Canon UK Ltd,A040459,10/03/2021,1407523,383.37,Equipment Operating Leases
North West Leicestershire District Council,31UH,Information Technology,ICT Services,ICT,Canon UK Ltd,A040459,10/03/2021,1407540,1133.32,Photo Copier - Copy Charges Rental
North West Leicestershire District Council,31UH,Housing,HRA Housing Management,HRAHM,JLA Limited,A043639,10/03/2021,1407542,427.84,Cleaning & Domestic Equipment
North West Leicestershire District Council,31UH,Street Management,Environment - Street Scene,ESS,Water Plus Limited,A044043,10/03/2021,1407453,371.32,Water Charges (Metered)
North West Leicestershire District Council,31UH,Property Services,Property Facilities Management,PROPFM,Water Plus Limited,A044043,10/03/2021,1407549,607.86,Water Charges (Metered)
North West Leicestershire District Council,31UH,Housing,HRA Housing Management,HRAHM,JLA Limited,A043639,10/03/2021,1407629,412,Cleaning & Domestic Equipment
North West Leicestershire District Council,31UH,Housing,HRA Housing Management,HRAHM,E.on,A000528,10/03/2021,1407630,1000.17,Electricity
North West Leicestershire District Council,31UH,Finance,Revenues,REVS,Browne Jacobson LLP,A000251,10/03/2021,1407631,464,Legal & Professional Services
North West Leicestershire District Council,31UH,Legal & Democratic,Legal Services,LDLS,South Lakeland District Council,A045535,10/03/2021,1407632,1350,Legal & Professional Services
North West Leicestershire District Council,31UH,Information Technology,ICT Services,ICT,EE Ltd (Airtime),A018592,10/03/2021,1407633,4425.18,Mobile Telephones
North West Leicestershire District Council,31UH,Information Technology,ICT Services,ICT,EE Ltd (Airtime),A018592,10/03/2021,1407634,2500.96,Mobile Telephones
North West Leicestershire District Council,31UH,Finance,Exchequer Services,EXCH,Click Travel Ltd,A044308,10/03/2021,1407636,3073.49,Travel and Subsistence
North West Leicestershire District Council,31UH,Finance,Exchequer Services,EXCH,Comensura Limited,A036958,10/03/2021,1407637,21236.97,Agency Staff
North West Leicestershire District Council,31UH,Housing,HRA Housing Management,HRAHM,JLA Limited,A043639,10/03/2021,1407660,282,Cleaning & Domestic Equipment
North West Leicestershire District Council,31UH,Legal & Democratic,Legal Services,LDLS,Browne Jacobson LLP,A042988,10/03/2021,1407662,5000,Legal & Professional Services
North West Leicestershire District Council,31UH,Property Services,Property Commercial Lettings,PROPCL,Water Plus Limited,A044043,10/03/2021,1407663,790.69,Water Charges (Metered)
North West Leicestershire District Council,31UH,Economic Development,Business Focus Group,BFG,Redacted- Personal data,A046721,10/03/2021,1407665,250,Grants
North West Leicestershire District Council,31UH,Legal & Democratic,Legal Services,LDLS,Browne Jacobson LLP,A042988,10/03/2021,1407670,954.5,Legal & Professional Services
North West Leicestershire District Council,31UH,Property Services,Property Commercial Lettings,PROPCL,British Gas,A042590,10/03/2021,1407672,440.1,Electricity
North West Leicestershire District Council,31UH,Housing,HRA Housing Management,HRAHM,British Gas Trading Limited,A001978,10/03/2021,1407708,408.09,Electricity
North West Leicestershire District Council,31UH,Communications,Corporate - Communications,CP,Quadient UK Ltd,A000079,10/03/2021,1407804,1500,Telephone Charge / Rental
North West Leicestershire District Council,31UH,Finance,Revenues,REVS,Browne Jacobson LLP,A042988,17/03/2021,1407810,1139,Legal & Professional Services
North West Leicestershire District Council,31UH,Housing,HRA Housing Management,HRAHM,Water Plus Limited,A044043,17/03/2021,1407811,2474.64,Water Charges (Metered)
North West Leicestershire District Council,31UH,Street Management,Environment - Street Scene,ESS,Animal Care Services Limited,A046488,17/03/2021,1407858,2005.05,Stray Dog Service
North West Leicestershire District Council,31UH,Housing,HRA Performance & Business Support,HRAPBS,Redacted- Personal data,A042131,17/03/2021,1407859,9000,Legal & Professional Services
North West Leicestershire District Council,31UH,Housing,HRA Performance & Business Support,HRAPBS,Redacted- Personal data,A046278,17/03/2021,1407860,9000,Legal & Professional Services
North West Leicestershire District Council,31UH,Housing,HRA Performance & Business Support,HRAPBS,Redacted- Personal data,A046740,17/03/2021,1407861,9000,Legal & Professional Services
North West Leicestershire District Council,31UH,Housing,HRA Performance & Business Support,HRAPBS,Redacted- Personal data,A046741,17/03/2021,1407862,9000,Legal & Professional Services
North West Leicestershire District Council,31UH,Housing,HRA Performance & Business Support,HRAPBS,Redacted- Personal data,A046742,17/03/2021,1407863,9000,Legal & Professional Services
North West Leicestershire District Council,31UH,Finance,Exchequer Services,EXCH,Comensura Limited,A036958,17/03/2021,1407867,21948.64,Agency Staff
North West Leicestershire District Council,31UH,Finance,Exchequer Services,EXCH,Click Travel Ltd,A044308,17/03/2021,1407870,4033.86,Travel and Subsistence
North West Leicestershire District Council,31UH,Property Services,Property Facilities Management,PROPFM,Water Plus Limited,A044043,17/03/2021,1407885,607.86,Water Charges (Metered)
North West Leicestershire District Council,31UH,Property Services,Property Commercial Lettings,PROPCL,British Telecommunications Plc,A000233,17/03/2021,1407908,558.62,Telephones
North West Leicestershire District Council,31UH,Legal & Democratic,Legal Services,LDLS,Bevan Brittan,A031366,17/03/2021,1407909,411.7,Legal & Professional Services
North West Leicestershire District Council,31UH,Street Management,Environment - Street Scene,ESS,Water Plus Limited,A044043,17/03/2021,1407922,1412.84,Water Charges (Metered)
North West Leicestershire District Council,31UH,Planning & Development,Environment Planning Policy,EPP,Usleep (Formerly Duflex Foam),A046743,17/03/2021,1407923,386,Fees & Charges
North West Leicestershire District Council,31UH,Housing Repairs,HRA Housing Repairs & Maintenance,HRAHRM,Dodd Group (Midlands) Limited,A036692,17/03/2021,1408149,12889.96,Electrical
North West Leicestershire District Council,31UH,Housing Repairs,HRA Housing Repairs & Maintenance,HRAHRM,SGS United Kingdom Limited,A044203,17/03/2021,1407973,7150.68,Environmental Surveys
North West Leicestershire District Council,31UH,Housing Repairs,HRA Housing Repairs & Maintenance,HRAHRM,SGS United Kingdom Limited,A044203,17/03/2021,1407974,8759.77,Environmental Surveys
North West Leicestershire District Council,31UH,Housing Strategy,Community - Housing Strategy,HS,Women's Aid Leicestershire Ltd,A039843,17/03/2021,1407995,15000,Grants
North West Leicestershire District Council,31UH,Housing Repairs,HRA Housing Repairs & Maintenance,HRAHRM,Sure Maintenance Ltd,A040460,17/03/2021,1408129,968.04,Plumbing & Heating
North West Leicestershire District Council,31UH,Housing Repairs,HRA Housing Repairs & Maintenance,HRAHRM,Sure Maintenance Ltd,A040460,17/03/2021,1408130,2867.72,Plumbing & Heating
North West Leicestershire District Council,31UH,Communications,Corporate - Customer Services,CS,Quadient UK Ltd,A000079,17/03/2021,1408132,1500,Postages
North West Leicestershire District Council,31UH,Economic Development,Business Focus Group,BFG,Tamsin MacKay,A046752,17/03/2021,1408136,250,Grants
North West Leicestershire District Council,31UH,Economic Development,Business Focus Group,BFG,Redacted- Personal data,A046753,17/03/2021,1408137,250,Grants
North West Leicestershire District Council,31UH,Economic Development,Business Focus Group,BFG,Redacted- Personal data,A046754,17/03/2021,1408138,250,Grants
North West Leicestershire District Council,31UH,Economic Development,Business Focus Group,BFG,Redacted- Personal data,A046755,17/03/2021,1408139,250,Grants
North West Leicestershire District Council,31UH,Economic Development,Business Focus Group,BFG,Redacted- Personal data,A046756,17/03/2021,1408140,250,Grants
North West Leicestershire District Council,31UH,Economic Development,Business Focus Group,BFG,Redacted- Personal data,A046757,17/03/2021,1408141,250,Grants
North West Leicestershire District Council,31UH,Housing,HRA Performance & Business Support,HRAPBS,Redacted- Personal data,A000133,17/03/2021,1408146,250,Compensation
North West Leicestershire District Council,31UH,Finance,Financial Planning,FINPLA,HMRC,A000133,17/03/2021,1408147,6840,Acquisition - Land and Buildings
North West Leicestershire District Council,31UH,Finance,Financial Planning,FINPLA,Premier Property Law,A000133,17/03/2021,1408150,185000,Acquisition - Land and Buildings
North West Leicestershire District Council,31UH,Finance,Financial Planning,FINPLA,Astle Paterson Ltd,A000133,17/03/2021,1408151,159000,Acquisition - Land and Buildings
North West Leicestershire District Council,31UH,Housing,HRA Housing Management,HRAHM,H M C S,A033868,17/03/2021,1408152,650,Legal & Professional Services
North West Leicestershire District Council,31UH,Finance,Revenues,REVS,Redacted- Personal data,A000133,05/03/2021,1408160,500,Test and Trace Grants
North West Leicestershire District Council,31UH,Finance,Revenues,REVS,Redacted- Personal data,A000133,05/03/2021,1408161,500,Test and Trace Grants
North West Leicestershire District Council,31UH,Finance,Revenues,REVS,Redacted- Personal data,A000133,05/03/2021,1408162,500,Test and Trace Grants
North West Leicestershire District Council,31UH,Finance,Financial Planning,FINPLA,HMRC,A000133,18/03/2021,1408167,5550,Acquisition - Land and Buildings
North West Leicestershire District Council,31UH,Finance,Financial Planning,FINPLA,HMRC,A000133,18/03/2021,1408168,4650,Acquisition - Land and Buildings
North West Leicestershire District Council,31UH,Finance,Financial Planning,FINPLA,Public Works Loan Board,A001340,18/03/2021,1408169,580059.95,Annuity Loan Repayments
North West Leicestershire District Council,31UH,Finance,Exchequer Services,EXCH,H M Land Registry,A000713,18/03/2021,1408173,484,Search fees
North West Leicestershire District Council,31UH,Finance,Financial Planning,FINPLA,Public Works Loan Board,A001340,18/03/2021,1408175,1000000,P.W.L.B. Loans
North West Leicestershire District Council,31UH,Finance,Financial Planning,FINPLA,Public Works Loan Board,A001340,18/03/2021,1408176,48473.24,P.W.L.B. Loans
North West Leicestershire District Council,31UH,Finance,Exchequer Services,EXCH,ESPO,A000958,18/03/2021,1408179,11386.08,Gas
North West Leicestershire District Council,31UH,Finance,Financial Planning,FINPLA,Cornwall  Council,A031018,18/03/2021,1408180,34092.47,Policy lending
North West Leicestershire District Council,31UH,Street Management,Environment - Street Scene,ESS,Water Plus Limited,A044043,18/03/2021,1408181,454.29,Sewerage & Environmental
North West Leicestershire District Council,31UH,Finance,Revenues,REVS,Redacted- Personal data,A000133,18/03/2021,1408184,500,Test and Trace Grants
North West Leicestershire District Council,31UH,Finance,Revenues,REVS,Redacted- Personal data,A000133,18/03/2021,1408185,500,Test and Trace Grants
North West Leicestershire District Council,31UH,Finance,Exchequer Services,EXCH,CIPFA,A042250,18/03/2021,1408186,250,Training Expenses
North West Leicestershire District Council,31UH,Finance,Exchequer Services,EXCH,Buy It Direct,A042250,18/03/2021,1408186,2360.88,Operational Equipment
North West Leicestershire District Council,31UH,Finance,Exchequer Services,EXCH,Marks & Spencers PLC,A042250,18/03/2021,1408186,519.8,Award Scheme
North West Leicestershire District Council,31UH,Finance,Exchequer Services,EXCH,MHR International UK Ltd,A045150,18/03/2021,1408188,24708,Computing
North West Leicestershire District Council,31UH,Finance,Exchequer Services,EXCH,MHR International UK Ltd,A045150,18/03/2021,1408189,2376,Computing
North West Leicestershire District Council,31UH,Information Technology,ICT Services,ICT,Asset Link Capital (No7) Limited,A046537,24/03/2021,1408190,339.08,Equipment Operating Leases
North West Leicestershire District Council,31UH,Legal & Democratic,Electoral & Land Charges,LDELC,SCI Print Limited,A028974,24/03/2021,1408192,3717.66,External Printing
North West Leicestershire District Council,31UH,Finance,Exchequer Services,EXCH,Comensura Limited,A036958,24/03/2021,1408193,24628.49,Agency Staff
North West Leicestershire District Council,31UH,Housing Repairs,HRA Housing Repairs & Maintenance,HRAHRM,European Asbestos Services Ltd,A045507,24/03/2021,1408235,1991.12,Contract Payments (Dws) Ext
North West Leicestershire District Council,31UH,Legal & Democratic,Legal Services,LDLS,Freeths LLP,A038047,24/03/2021,1408248,3016.5,Advertising
North West Leicestershire District Council,31UH,Housing Strategy,Community - Housing Strategy,HS,Charnwood Borough Council,A000323,24/03/2021,1408263,99100,Grants
North West Leicestershire District Council,31UH,Legal & Democratic,Legal Services,LDLS,Lamb Building Chambers,A045908,24/03/2021,1408282,1100,Legal & Professional Services
North West Leicestershire District Council,31UH,Finance,Financial Planning,FINPLA,Sports & Leisure Management Ltd,A045556,24/03/2021,1408283,175000,Contributions
North West Leicestershire District Council,31UH,Housing,HRA Housing Management,HRAHM,Willesley Estate TARA,A035881,24/03/2021,1408404,600,Grants
North West Leicestershire District Council,31UH,Housing Strategy,Community - Housing Strategy,HS,Redacted- Personal data,A046767,24/03/2021,1408405,250,Under Occupancy Incentives
North West Leicestershire District Council,31UH,Finance,Exchequer Services,EXCH,Click Travel Ltd,A044308,24/03/2021,1408410,3891,Travel and Subsistence
North West Leicestershire District Council,31UH,Finance,Exchequer Services,EXCH,Comensura Limited,A036958,24/03/2021,1408411,26704.89,Agency Staff
North West Leicestershire District Council,31UH,Communications,Corporate - Customer Services,CS,Quadient UK Ltd,A000079,30/03/2021,1408415,5000,Postages
North West Leicestershire District Council,31UH,Economic Development,Business Focus Group,BFG,Ashby Foodbank,A046773,30/03/2021,1408447,3000,Grants
North West Leicestershire District Council,31UH,Economic Development,Business Focus Group,BFG,Charles Booth Centre,A001665,30/03/2021,1408448,5000,Grants
North West Leicestershire District Council,31UH,Economic Development,Business Focus Group,BFG,Castle Donington Volunteers Centre,A046772,30/03/2021,1408449,3000,Grants
North West Leicestershire District Council,31UH,Economic Development,Business Focus Group,BFG,Castle Donington Volunteers Centre,A046772,30/03/2021,1408450,5000,Grants
North West Leicestershire District Council,31UH,Economic Development,Business Focus Group,BFG,Coalville Foodbank,A046770,30/03/2021,1408452,718,Grants
North West Leicestershire District Council,31UH,Economic Development,Business Focus Group,BFG,Coalville Yellow Cabs,A041983,30/03/2021,1408453,2000,Grants
North West Leicestershire District Council,31UH,Economic Development,Business Focus Group,BFG,Feed the Need,A046771,30/03/2021,1408454,1000,Grants
North West Leicestershire District Council,31UH,Economic Development,Business Focus Group,BFG,MRC Community Action,A001208,30/03/2021,1408455,3000,Homeless prevention Expenditure
North West Leicestershire District Council,31UH,Economic Development,Business Focus Group,BFG,MRC Community Action,A001208,30/03/2021,1408456,3000,Homeless prevention Expenditure
North West Leicestershire District Council,31UH,Economic Development,Business Focus Group,BFG,MRC Community Action,A001208,30/03/2021,1408457,5000,Homeless prevention Expenditure
North West Leicestershire District Council,31UH,Economic Development,Business Focus Group,BFG,Woodstock in Whitwick,A044459,30/03/2021,1408460,1000,Grants
North West Leicestershire District Council,31UH,Housing,HRA Housing Management,HRAHM,Elan Removals,A041305,30/03/2021,1408468,1450,Removal Services
North West Leicestershire District Council,31UH,Legal & Democratic,Legal Services,LDLS,Harborough District Council,A008631,30/03/2021,1408469,666.66,External Legal Fees & Advice
North West Leicestershire District Council,31UH,Economic Development,Business Focus Group,BFG,We Care UK,A046769,30/03/2021,1408476,2000,Grants
North West Leicestershire District Council,31UH,Housing,HRA Housing Management,HRAHM,E.on,A000528,30/03/2021,1408490,630.58,Electricity
North West Leicestershire District Council,31UH,Finance,Exchequer Services,EXCH,Click Travel Ltd,A044308,30/03/2021,1408491,2343.15,Travel and Subsistence
North West Leicestershire District Council,31UH,Housing Repairs,HRA Housing Repairs & Maintenance,HRAHRM,PPG Architectural Coatings Ltd,A000876,30/03/2021,1408492,2034.21,Internal Decorations
North West Leicestershire District Council,31UH,Economic Development,Business Focus Group,BFG,Coalville Foodbank,A046770,30/03/2021,1408451,3000,Grants
North West Leicestershire District Council,31UH,Housing Repairs,HRA Housing Repairs & Maintenance,HRAHRM,Citron Hygiene Ltd,A040930,30/03/2021,1408622,2393.2,Service Contracts - Premises costs
North West Leicestershire District Council,31UH,Legal & Democratic,Electoral & Land Charges,LDELC,Twofold Ltd,A041261,30/03/2021,1408733,929.56,Equipment Maintenance
North West Leicestershire District Council,31UH,Legal & Democratic,Electoral & Land Charges,LDELC,Electoral Reform Services Limited,A038581,30/03/2021,1408735,24423.2,Postages
North West Leicestershire District Council,31UH,Housing Repairs,HRA Housing Repairs & Maintenance,HRAHRM,JLA Limited,A043639,30/03/2021,1408744,302,Cleaning & Domestic Equipment
North West Leicestershire District Council,31UH,Housing Repairs,HRA Housing Repairs & Maintenance,HRAHRM,JLA Limited,A043639,30/03/2021,1408745,442,Cleaning & Domestic Equipment
North West Leicestershire District Council,31UH,Housing,HRA Housing Management,HRAHM,JLA Limited,A043639,30/03/2021,1408746,282,Cleaning & Domestic Equipment
North West Leicestershire District Council,31UH,Housing,HRA Housing Management,HRAHM,JLA Limited,A043639,30/03/2021,1408747,282,Cleaning & Domestic Equipment
North West Leicestershire District Council,31UH,Housing,HRA Housing Management,HRAHM,JLA Limited,A043639,30/03/2021,1408752,412,Cleaning & Domestic Equipment
North West Leicestershire District Council,31UH,Finance,Exchequer Services,EXCH,Sybase SAP,A042250,29/03/2021,1408694,412,Software Licences
North West Leicestershire District Council,31UH,Finance,Revenues,REVS,Redacted- Personal data,A000133,29/03/2021,1408696,500,Test and Trace Grants
North West Leicestershire District Council,31UH,Finance,Revenues,REVS,Redacted- Personal data,A000133,29/03/2021,1408697,500,Test and Trace Grants
North West Leicestershire District Council,31UH,Communications,Corporate - Communications,CP,janus Ridgway Limited,A000133,29/03/2021,1408698,283.34,Advertising
North West Leicestershire District Council,31UH,Finance,Exchequer Services,EXCH,Total Gas & Power,A033385,29/03/2021,1408699,17390.02,Electricity
North West Leicestershire District Council,31UH,Finance,Financial Planning,FINPLA,Department for Communities & Local Government,A028518,29/03/2021,1408700,51448,Subsidy Receipts & Repayments
North West Leicestershire District Council,31UH,Finance,Financial Planning,FINPLA,HMRC,A000133,29/03/2021,1408701,4770,Acquisition - Land and Buildings
North West Leicestershire District Council,31UH,Finance,Revenues,REVS,Browne Jacobson LLP,A000133,29/03/2021,1408702,13500,Acquisition - Land and Buildings
North West Leicestershire District Council,31UH,Housing Repairs,HRA Housing Repairs & Maintenance,HRAHRM,Western Power,A000133,29/03/2021,1408703,4903.36,Electricity
North West Leicestershire District Council,31UH,Finance,Revenues,REVS,Redacted- Personal data,A000133,29/03/2021,1408704,500,Test and Trace Grants
North West Leicestershire District Council,31UH,Housing,HRA Housing Management,HRAHM,H M C S,A033868,29/03/2021,1408705,1338,Legal & Professional Services
North West Leicestershire District Council,31UH,Housing,HRA Housing Management,HRAHM,H M C S,A033868,29/03/2021,1408706,1784,Legal & Professional Services
North West Leicestershire District Council,31UH,Finance,Exchequer Services,EXCH,H M Land Registry,A000713,29/03/2021,1408724,374,Town Centre & Area Regeneration - Initia
North West Leicestershire District Council,31UH,Housing Repairs,HRA Housing Repairs & Maintenance,HRAHRM,Geze Uk Limited,A023130,03/03/2021,1407057,350,Lift maintenance
North West Leicestershire District Council,31UH,Housing Repairs,HRA Housing Repairs & Maintenance,HRAHRM,Emperor Scaffolding Limited,A038405,03/03/2021,1407067,440,Hire Of Operational Equipment
North West Leicestershire District Council,31UH,Housing Repairs,HRA Housing Repairs & Maintenance,HRAHRM,Emperor Scaffolding Limited,A038405,03/03/2021,1407069,2380,Hire Of Operational Equipment
North West Leicestershire District Council,31UH,Housing Repairs,HRA Housing Repairs & Maintenance,HRAHRM,Emperor Scaffolding Limited,A038405,03/03/2021,1407070,1900,Hire Of Operational Equipment
North West Leicestershire District Council,31UH,Housing Repairs,HRA Housing Repairs & Maintenance,HRAHRM,TECSERV UK LIMITED,A028261,03/03/2021,1407071,275.2,Contract Payments (Dws) Ext
North West Leicestershire District Council,31UH,Housing Repairs,HRA Housing Repairs & Maintenance,HRAHRM,Premier Mobility UK Ltd,A045304,03/03/2021,1407376,258.84,Plumbing & Heating
North West Leicestershire District Council,31UH,Housing Repairs,HRA Housing Repairs & Maintenance,HRAHRM,Premier Mobility UK Ltd,A045304,03/03/2021,1407391,619.17,Plumbing & Heating
North West Leicestershire District Council,31UH,Housing Repairs,HRA Housing Repairs & Maintenance,HRAHRM,Emperor Scaffolding Limited,A038405,03/03/2021,1407395,415,Hire Of Operational Equipment
North West Leicestershire District Council,31UH,Housing Repairs,HRA Housing Repairs & Maintenance,HRAHRM,Orbis Property Protection Ltd,A028149,17/03/2021,1408103,1793.41,Void Property Clearance Services
North West Leicestershire District Council,31UH,Housing Repairs,HRA Housing Repairs & Maintenance,HRAHRM,Fire Proof Ltd,A039911,17/03/2021,1408104,670,Plumbing & Heating
North West Leicestershire District Council,31UH,Housing Repairs,HRA Housing Repairs & Maintenance,HRAHRM,Severn Trent Water Limited,A001468,17/03/2021,1408106,435.02,Water and Sewarage
North West Leicestershire District Council,31UH,Housing Repairs,HRA Housing Repairs & Maintenance,HRAHRM,John Merison BMC Ltd,A001092,17/03/2021,1408107,1729.56,General Repairs
North West Leicestershire District Council,31UH,Housing Repairs,HRA Housing Repairs & Maintenance,HRAHRM,Emperor Scaffolding Limited,A038405,17/03/2021,1408108,1200,Hire Of Operational Equipment
North West Leicestershire District Council,31UH,Housing Repairs,HRA Housing Repairs & Maintenance,HRAHRM,Emperor Scaffolding Limited,A038405,17/03/2021,1408109,1120,Hire Of Operational Equipment
North West Leicestershire District Council,31UH,Housing Repairs,HRA Housing Repairs & Maintenance,HRAHRM,Emperor Scaffolding Limited,A038405,17/03/2021,1408110,320,Hire Of Operational Equipment
North West Leicestershire District Council,31UH,Housing Repairs,HRA Housing Repairs & Maintenance,HRAHRM,John Merison BMC Ltd,A001092,17/03/2021,1408111,900,General Repairs
North West Leicestershire District Council,31UH,Housing Repairs,HRA Housing Repairs & Maintenance,HRAHRM,Emperor Scaffolding Limited,A038405,17/03/2021,1408114,415,Hire Of Operational Equipment
North West Leicestershire District Council,31UH,Housing Repairs,HRA Housing Repairs & Maintenance,HRAHRM,TECSERV UK LIMITED,A028261,17/03/2021,1408117,274.27,Contract Payments (Dws) Ext
North West Leicestershire District Council,31UH,Housing Repairs,HRA Housing Repairs & Maintenance,HRAHRM,Laker BMS Ltd,A031787,30/03/2021,1408630,4972.61,Housing Repairs
North West Leicestershire District Council,31UH,Housing Repairs,HRA Housing Repairs & Maintenance,HRAHRM,Emperor Scaffolding Limited,A038405,30/03/2021,1408634,1600,Hire Of Operational Equipment
North West Leicestershire District Council,31UH,Housing Repairs,HRA Housing Repairs & Maintenance,HRAHRM,John Merison BMC Ltd,A001092,30/03/2021,1408636,1339.46,General Repairs
North West Leicestershire District Council,31UH,Housing Repairs,HRA Housing Repairs & Maintenance,HRAHRM,John Merison BMC Ltd,A001092,30/03/2021,1408637,1230.56,General Repairs
North West Leicestershire District Council,31UH,Housing Repairs,HRA Housing Repairs & Maintenance,HRAHRM,Cadent Gas limited,A032629,30/03/2021,1408640,560,Contract Payments (Dws) Ext
North West Leicestershire District Council,31UH,Housing Repairs,HRA Housing Repairs & Maintenance,HRAHRM,Emperor Scaffolding Limited,A038405,30/03/2021,1408641,375,Hire Of Operational Equipment
North West Leicestershire District Council,31UH,Housing Repairs,HRA Housing Repairs & Maintenance,HRAHRM,Emperor Scaffolding Limited,A038405,30/03/2021,1408642,300,Hire Of Operational Equipment
North West Leicestershire District Council,31UH,Housing Repairs,HRA Housing Repairs & Maintenance,HRAHRM,Emperor Scaffolding Limited,A038405,30/03/2021,1408644,375,Hire Of Operational Equipment
North West Leicestershire District Council,31UH,Housing Repairs,HRA Housing Repairs & Maintenance,HRAHRM,Emperor Scaffolding Limited,A038405,30/03/2021,1408645,300,Hire Of Operational Equipment
North West Leicestershire District Council,31UH,Housing Repairs,HRA Housing Repairs & Maintenance,HRAHRM,Timber-Link Fencing Ltd,A033297,30/03/2021,1408646,11032,External Contractor Payments
North West Leicestershire District Council,31UH,Housing Repairs,HRA Housing Repairs & Maintenance,HRAHRM,Timber-Link Fencing Ltd,A033297,30/03/2021,1408647,11228,External Contractor Payments
North West Leicestershire District Council,31UH,Housing Repairs,HRA Housing Repairs & Maintenance,HRAHRM,Timber-Link Fencing Ltd,A033297,30/03/2021,1408648,265,External Contractor Payments
North West Leicestershire District Council,31UH,Housing Repairs,HRA Housing Repairs & Maintenance,HRAHRM,Timber-Link Fencing Ltd,A033297,30/03/2021,1408649,725,External Contractor Payments
North West Leicestershire District Council,31UH,Housing Repairs,HRA Housing Repairs & Maintenance,HRAHRM,Timber-Link Fencing Ltd,A033297,30/03/2021,1408650,439,External Contractor Payments
North West Leicestershire District Council,31UH,Housing Repairs,HRA Housing Repairs & Maintenance,HRAHRM,Timber-Link Fencing Ltd,A033297,30/03/2021,1408651,300,External Contractor Payments
North West Leicestershire District Council,31UH,Housing Repairs,HRA Housing Repairs & Maintenance,HRAHRM,Timber-Link Fencing Ltd,A033297,30/03/2021,1408653,1570.8,External Contractor Payments
North West Leicestershire District Council,31UH,Housing Repairs,HRA Housing Repairs & Maintenance,HRAHRM,Timber-Link Fencing Ltd,A033297,30/03/2021,1408654,1475.8,External Contractor Payments
